[Event "Early-Titled-Tuesday-Blitz-April-23-2024"]
[Site "Chess.com"]
[Date "2024.04.23"]
[Round "6"]
[White "kekic76"]
[Black "Mikhail_Golubev"]
[Result "0-1"]
[WhiteElo "2359"]
[BlackElo "2598"]
[TimeControl "180+1"]
[EndTime "9:09:13 PDT"]
[Termination "Mikhail_Golubev won by checkmate"]

1. c4 {[%clk 0:03:00.4]} 1... g6 {[%clk 0:02:59.4]} 2. Nc3 {[%clk 0:03:00.4]}
2... Bg7 {[%clk 0:02:59.5]} 3. Nf3 {[%clk 0:03:01]} 3... e5 {[%clk 0:02:57.4]}
4. g3 {[%clk 0:03:00.1]} 4... Nc6 {[%clk 0:02:56.6]} 5. Bg2 {[%clk 0:03:00.3]}
5... d6 {[%clk 0:02:57.2]} 6. O-O {[%clk 0:03:00.7]} 6... f5 {[%clk 0:02:57.1]}
7. d3 {[%clk 0:03:00.3]} 7... h6 {[%clk 0:02:56.4]} 8. e4 {[%clk 0:03:00.1]}
8... Nge7 {[%clk 0:02:47.8]} 9. Nd5 {[%clk 0:02:59.3]} 9... O-O {[%clk
0:02:46.2]} 10. Nh4 {[%clk 0:02:56.1]} 10... Nxd5 {[%clk 0:02:38.7]} 11. exd5
{[%clk 0:02:47.9]} 11... Ne7 {[%clk 0:02:35.9]} 12. Bd2 {[%clk 0:02:34.6]} 12...
g5 {[%clk 0:02:33]} 13. Nf3 {[%clk 0:02:34.8]} 13... f4 {[%clk 0:02:28.8]} 14.
Re1 {[%clk 0:02:23.1]} 14... Ng6 {[%clk 0:02:22.1]} 15. Bc3 {[%clk 0:02:20.7]}
15... Bf5 {[%clk 0:01:54.9]} 16. Qc2 {[%clk 0:02:07]} 16... g4 {[%clk
0:01:15.8]} 17. Nd2 {[%clk 0:02:06.9]} 17... h5 {[%clk 0:01:10.8]} 18. Be4
{[%clk 0:02:05.1]} 18... Qd7 {[%clk 0:01:04]} 19. Kh1 {[%clk 0:01:48.8]} 19...
h4 {[%clk 0:00:57.1]} 20. Rg1 {[%clk 0:01:43.4]} 20... Rf7 {[%clk 0:00:35.6]}
21. Rac1 {[%clk 0:01:33.9]} 21... Raf8 {[%clk 0:00:34.5]} 22. Bxf5 {[%clk
0:01:33.2]} 22... Rxf5 {[%clk 0:00:31.1]} 23. Ne4 {[%clk 0:01:31.5]} 23... Rh5
{[%clk 0:00:27]} 24. Kg2 {[%clk 0:01:15.8]} 24... Qf5 {[%clk 0:00:20]} 25. Qd1
{[%clk 0:00:56.2]} 25... Bh6 {[%clk 0:00:16.8]} 26. Rc2 {[%clk 0:00:51.1]} 26...
fxg3 {[%clk 0:00:16.7]} 27. hxg3 {[%clk 0:00:41.5]} 27... hxg3 {[%clk
0:00:11.7]} 28. Nxg3 {[%clk 0:00:39]} 28... Qf3+ {[%clk 0:00:10.5]} 29. Qxf3
{[%clk 0:00:38.1]} 29... gxf3+ {[%clk 0:00:11.4]} 30. Kf1 {[%clk 0:00:38]} 30...
Rh2 {[%clk 0:00:11.6]} 31. Ne4 {[%clk 0:00:36.2]} 31... Kf7 {[%clk 0:00:10.8]}
32. Bd2 {[%clk 0:00:35.1]} 32... Bxd2 {[%clk 0:00:10]} 33. Rxd2 {[%clk 0:00:36]}
33... Nh4 {[%clk 0:00:05.1]} 34. Ng5+ {[%clk 0:00:34]} 34... Ke7 {[%clk
0:00:04.4]} 35. Ne6 {[%clk 0:00:31.4]} 35... Rh8 {[%clk 0:00:03.8]} 36. Rg7+
{[%clk 0:00:28.2]} 36... Kf6 {[%clk 0:00:03.9]} 37. Rg1 {[%clk 0:00:24.4]} 37...
Rg2 {[%clk 0:00:03.3]} 38. Rh1 {[%clk 0:00:15.5]} 38... Rhg8 {[%clk 0:00:03.2]}
39. Rd1 {[%clk 0:00:08]} 39... R8g4 {[%clk 0:00:02.6]} 40. Ke1 {[%clk
0:00:07.6]} 40... Nf5 {[%clk 0:00:02.4]} 41. Kd2 {[%clk 0:00:07.4]} 41... Rxf2+
{[%clk 0:00:02.3]} 42. Kc3 {[%clk 0:00:07.3]} 42... Nd4 {[%clk 0:00:02.7]} 43.
Rc1 {[%clk 0:00:05.9]} 43... Nxe6 {[%clk 0:00:02.4]} 44. dxe6 {[%clk 0:00:06.1]}
44... Kxe6 {[%clk 0:00:03.2]} 45. Rh6+ {[%clk 0:00:06.7]} 45... Kd7 {[%clk
0:00:03.4]} 46. Rch1 {[%clk 0:00:04.9]} 46... Kc6 {[%clk 0:00:03.2]} 47. b4
{[%clk 0:00:05.2]} 47... Rgg2 {[%clk 0:00:03.1]} 48. b5+ {[%clk 0:00:04.3]}
48... Kc5 {[%clk 0:00:03.4]} 49. R1h5 {[%clk 0:00:02.9]} 49... Rc2+ {[%clk
0:00:03.4]} 50. Kb3 {[%clk 0:00:03.6]} 50... Rb2+ {[%clk 0:00:03.9]} 51. Kc3
{[%clk 0:00:03.9]} 51... Rgc2# {[%clk 0:00:03]} 0-1

[Event "Early-Titled-Tuesday-Blitz-April-23-2024"]
[Site "Chess.com"]
[Date "2024.04.23"]
[Round "6"]
[White "DenLaz"]
[Black "Matibar"]
[Result "1-0"]
[WhiteElo "3111"]
[BlackElo "2845"]
[TimeControl "180+1"]
[EndTime "9:09:14 PDT"]
[Termination "DenLaz won on time"]

1. d4 {[%clk 0:03:00.9]} 1... Nf6 {[%clk 0:02:59.4]} 2. c4 {[%clk 0:03:01.6]}
2... Nc6 {[%clk 0:02:57.9]} 3. Nf3 {[%clk 0:03:00.4]} 3... e6 {[%clk 0:02:57.1]}
4. g3 {[%clk 0:03:00.2]} 4... Bb4+ {[%clk 0:02:56.4]} 5. Bd2 {[%clk 0:03:00.2]}
5... Qe7 {[%clk 0:02:51.8]} 6. Nc3 {[%clk 0:02:58.6]} 6... Bxc3 {[%clk
0:02:47.8]} 7. Bxc3 {[%clk 0:02:58.6]} 7... Ne4 {[%clk 0:02:48]} 8. Qc2 {[%clk
0:02:58.9]} 8... Nxc3 {[%clk 0:02:46.7]} 9. Qxc3 {[%clk 0:02:59.8]} 9... d6
{[%clk 0:02:46.7]} 10. d5 {[%clk 0:02:50.3]} 10... exd5 {[%clk 0:02:46.1]} 11.
cxd5 {[%clk 0:02:50]} 11... Ne5 {[%clk 0:02:41.6]} 12. Nxe5 {[%clk 0:02:45.4]}
12... Qxe5 {[%clk 0:02:32.7]} 13. Qxe5+ {[%clk 0:02:40.5]} 13... dxe5 {[%clk
0:02:32.6]} 14. Bg2 {[%clk 0:02:39.7]} 14... Bd7 {[%clk 0:02:27.6]} 15. Rc1
{[%clk 0:02:37.8]} 15... O-O-O {[%clk 0:02:26.9]} 16. Kd2 {[%clk 0:02:32.9]}
16... Kb8 {[%clk 0:02:15.3]} 17. Ke3 {[%clk 0:02:25.3]} 17... f5 {[%clk
0:02:07.3]} 18. Rc3 {[%clk 0:02:14.3]} 18... g5 {[%clk 0:01:57.4]} 19. Rhc1
{[%clk 0:02:02.2]} 19... Rc8 {[%clk 0:01:55.4]} 20. Kd2 {[%clk 0:01:58.4]} 20...
h5 {[%clk 0:01:45.6]} 21. h4 {[%clk 0:01:41.4]} 21... g4 {[%clk 0:01:43.1]} 22.
b4 {[%clk 0:01:19.4]} 22... Rhd8 {[%clk 0:01:40.7]} 23. Ke3 {[%clk 0:01:10.2]}
23... Rf8 {[%clk 0:01:38.8]} 24. Kd2 {[%clk 0:01:08.6]} 24... Bb5 {[%clk
0:01:28]} 25. a3 {[%clk 0:00:46.8]} 25... a6 {[%clk 0:01:27.5]} 26. Ke1 {[%clk
0:00:43.7]} 26... Rf6 {[%clk 0:01:19.7]} 27. Ra1 {[%clk 0:00:29.4]} 27... Ba4
{[%clk 0:01:15.3]} 28. Ra2 {[%clk 0:00:27.8]} 28... Rd8 {[%clk 0:01:12.6]} 29.
Rd2 {[%clk 0:00:27.6]} 29... Rfd6 {[%clk 0:01:12.2]} 30. e4 {[%clk 0:00:27.3]}
30... f4 {[%clk 0:00:38.1]} 31. f3 {[%clk 0:00:13.2]} 31... Rf8 {[%clk
0:00:26.8]} 32. fxg4 {[%clk 0:00:09.3]} 32... hxg4 {[%clk 0:00:25.2]} 33. Rf2
{[%clk 0:00:09.4]} 33... f3 {[%clk 0:00:24]} 34. Bf1 {[%clk 0:00:09.7]} 34... c6
{[%clk 0:00:22.6]} 35. Rd2 {[%clk 0:00:06.9]} 35... Rfd8 {[%clk 0:00:19.4]} 36.
Kf2 {[%clk 0:00:04.7]} 36... cxd5 {[%clk 0:00:19.4]} 37. exd5 {[%clk 0:00:05.2]}
37... Rxd5 {[%clk 0:00:19.8]} 38. Rxd5 {[%clk 0:00:05.8]} 38... Rxd5 {[%clk
0:00:20.4]} 39. Rd3 {[%clk 0:00:06.4]} 39... Rd7 {[%clk 0:00:09.7]} 40. Rxd7
{[%clk 0:00:05.8]} 40... Bxd7 {[%clk 0:00:10.2]} 41. Bd3 {[%clk 0:00:06.3]}
41... Be8 {[%clk 0:00:10.7]} 42. Bf5 {[%clk 0:00:03.7]} 42... Bh5 {[%clk
0:00:11]} 43. a4 {[%clk 0:00:03.9]} 43... Kc7 {[%clk 0:00:11.3]} 44. a5 {[%clk
0:00:04.4]} 44... b6 {[%clk 0:00:09.9]} 45. Bd3 {[%clk 0:00:04]} 45... bxa5
{[%clk 0:00:10.1]} 46. bxa5 {[%clk 0:00:04.9]} 46... Kb7 {[%clk 0:00:10.4]} 47.
Ke3 {[%clk 0:00:05.1]} 47... Ka7 {[%clk 0:00:10.2]} 48. Be4 {[%clk 0:00:05.4]}
48... Kb8 {[%clk 0:00:10]} 49. Bd5 {[%clk 0:00:05.7]} 49... Kc7 {[%clk
0:00:09.7]} 50. Bc4 {[%clk 0:00:06]} 50... Kb7 {[%clk 0:00:05.3]} 51. Ke4 {[%clk
0:00:06.5]} 51... Kc6 {[%clk 0:00:03]} 52. Bxa6 {[%clk 0:00:05.9]} 52... Kc5
{[%clk 0:00:03.3]} 53. Bf1 {[%clk 0:00:06]} 1-0

[Event "Early-Titled-Tuesday-Blitz-April-23-2024"]
[Site "Chess.com"]
[Date "2024.04.23"]
[Round "6"]
[White "Iskusnyh"]
[Black "Eagle_2019"]
[Result "0-1"]
[WhiteElo "2645"]
[BlackElo "2862"]
[TimeControl "180+1"]
[EndTime "9:09:15 PDT"]
[Termination "Eagle_2019 won on time"]

1. d4 {[%clk 0:03:00.9]} 1... d5 {[%clk 0:02:58.8]} 2. c4 {[%clk 0:03:00.9]}
2... e6 {[%clk 0:02:57.2]} 3. Nf3 {[%clk 0:02:58.6]} 3... Nf6 {[%clk 0:02:56.5]}
4. g3 {[%clk 0:02:58.7]} 4... Be7 {[%clk 0:02:52.9]} 5. Bg2 {[%clk 0:02:58.2]}
5... O-O {[%clk 0:02:52.9]} 6. O-O {[%clk 0:02:58.8]} 6... Nbd7 {[%clk
0:02:50.9]} 7. Qc2 {[%clk 0:02:55]} 7... c6 {[%clk 0:02:50.4]} 8. b3 {[%clk
0:02:49.6]} 8... b6 {[%clk 0:02:49.5]} 9. Rd1 {[%clk 0:02:48.8]} 9... Bb7 {[%clk
0:02:47.2]} 10. Nc3 {[%clk 0:02:48.8]} 10... Ba6 {[%clk 0:02:25.3]} 11. Nd2
{[%clk 0:02:47.2]} 11... b5 {[%clk 0:02:23.2]} 12. cxb5 {[%clk 0:02:40.3]} 12...
cxb5 {[%clk 0:02:22.9]} 13. a3 {[%clk 0:02:34.7]} 13... Qb6 {[%clk 0:02:12.3]}
14. Bb2 {[%clk 0:02:31.8]} 14... Rac8 {[%clk 0:02:04.1]} 15. e3 {[%clk
0:02:28.1]} 15... Bb7 {[%clk 0:01:58]} 16. Qd3 {[%clk 0:02:20.5]} 16... Bc6
{[%clk 0:01:39.4]} 17. b4 {[%clk 0:02:08.2]} 17... a5 {[%clk 0:01:38.8]} 18. Bf1
{[%clk 0:01:44.3]} 18... axb4 {[%clk 0:01:34.4]} 19. axb4 {[%clk 0:01:31.1]}
19... Bxb4 {[%clk 0:01:33.7]} 20. Nxb5 {[%clk 0:01:23.5]} 20... Bxd2 {[%clk
0:01:08.5]} 21. Rxd2 {[%clk 0:01:21.2]} 21... Ne4 {[%clk 0:01:07.4]} 22. Rdd1
{[%clk 0:01:15.6]} 22... Rb8 {[%clk 0:01:06.8]} 23. Ba3 {[%clk 0:00:51.9]} 23...
Bxb5 {[%clk 0:01:04.3]} 24. Qxb5 {[%clk 0:00:50.6]} 24... Qxb5 {[%clk
0:01:04.3]} 25. Bxb5 {[%clk 0:00:50.5]} 25... Rxb5 {[%clk 0:01:05.2]} 26. Bxf8
{[%clk 0:00:51.1]} 26... Nxf8 {[%clk 0:00:58.3]} 27. Rdb1 {[%clk 0:00:49.3]}
27... Rxb1+ {[%clk 0:00:56.6]} 28. Rxb1 {[%clk 0:00:50.2]} 28... g5 {[%clk
0:00:56.4]} 29. f3 {[%clk 0:00:49.7]} 29... Nf6 {[%clk 0:00:56.2]} 30. g4 {[%clk
0:00:49.9]} 30... Kg7 {[%clk 0:00:53.9]} 31. Kg2 {[%clk 0:00:49.2]} 31... Ng6
{[%clk 0:00:53.2]} 32. Rb7 {[%clk 0:00:46.3]} 32... Ne8 {[%clk 0:00:52.1]} 33.
Rd7 {[%clk 0:00:44.5]} 33... Nf6 {[%clk 0:00:43.3]} 34. Ra7 {[%clk 0:00:43.4]}
34... h5 {[%clk 0:00:38.6]} 35. h3 {[%clk 0:00:43.1]} 35... hxg4 {[%clk
0:00:33.8]} 36. hxg4 {[%clk 0:00:40.5]} 36... Nf8 {[%clk 0:00:33.8]} 37. Kg3
{[%clk 0:00:39]} 37... Ne8 {[%clk 0:00:33.6]} 38. Kf2 {[%clk 0:00:35.1]} 38...
Nd6 {[%clk 0:00:32.8]} 39. Ra8 {[%clk 0:00:34.5]} 39... Ng6 {[%clk 0:00:31]} 40.
Ra7 {[%clk 0:00:31.8]} 40... Kf6 {[%clk 0:00:29.1]} 41. Ra6 {[%clk 0:00:29]}
41... Nc4 {[%clk 0:00:28]} 42. Ra7 {[%clk 0:00:29.1]} 42... Nh4 {[%clk
0:00:23.2]} 43. Rc7 {[%clk 0:00:28.2]} 43... Nd2 {[%clk 0:00:22.4]} 44. Ra7
{[%clk 0:00:23.7]} 44... Ndxf3 {[%clk 0:00:14.7]} 45. Ra8 {[%clk 0:00:17.6]}
45... Nd2 {[%clk 0:00:13.9]} 46. Rh8 {[%clk 0:00:13.9]} 46... Ne4+ {[%clk
0:00:13.9]} 47. Ke2 {[%clk 0:00:13.6]} 47... Kg7 {[%clk 0:00:14.2]} 48. Ra8
{[%clk 0:00:11.5]} 48... Ng6 {[%clk 0:00:14.3]} 49. Kf3 {[%clk 0:00:07.7]} 49...
Nh4+ {[%clk 0:00:13.9]} 50. Ke2 {[%clk 0:00:07.7]} 50... Nf6 {[%clk 0:00:14]}
0-1

[Event "Early-Titled-Tuesday-Blitz-April-23-2024"]
[Site "Chess.com"]
[Date "2024.04.23"]
[Round "6"]
[White "SharapovEvgeny"]
[Black "Chesstiger64"]
[Result "1/2-1/2"]
[WhiteElo "2618"]
[BlackElo "2353"]
[TimeControl "180+1"]
[EndTime "9:09:15 PDT"]
[Termination "Game drawn - insufficient material"]

1. e4 {[%clk 0:02:59.7]} 1... c5 {[%clk 0:03:00.1]} 2. Nf3 {[%clk 0:02:59.6]}
2... e6 {[%clk 0:03:00.7]} 3. d4 {[%clk 0:02:59.1]} 3... cxd4 {[%clk 0:03:01.2]}
4. Nxd4 {[%clk 0:02:59.5]} 4... Nf6 {[%clk 0:03:01.7]} 5. Nc3 {[%clk 0:02:59.4]}
5... Nc6 {[%clk 0:03:02.2]} 6. Ndb5 {[%clk 0:02:59.1]} 6... Bb4 {[%clk
0:03:01.1]} 7. a3 {[%clk 0:02:59.1]} 7... Bxc3+ {[%clk 0:03:01.5]} 8. Nxc3
{[%clk 0:02:59.5]} 8... d5 {[%clk 0:03:02.1]} 9. Bd3 {[%clk 0:02:59.1]} 9...
dxe4 {[%clk 0:03:01.2]} 10. Nxe4 {[%clk 0:02:58.9]} 10... Nxe4 {[%clk
0:03:01.8]} 11. Bxe4 {[%clk 0:02:59.3]} 11... Qxd1+ {[%clk 0:03:02.3]} 12. Kxd1
{[%clk 0:02:59.8]} 12... Bd7 {[%clk 0:03:02.9]} 13. c3 {[%clk 0:02:56.1]} 13...
f5 {[%clk 0:03:01.8]} 14. Bc2 {[%clk 0:02:52.6]} 14... e5 {[%clk 0:03:00.9]} 15.
Be3 {[%clk 0:02:47.6]} 15... Be6 {[%clk 0:02:59.6]} 16. f3 {[%clk 0:02:45.5]}
16... Kf7 {[%clk 0:02:58.4]} 17. Ke1 {[%clk 0:02:45.2]} 17... Na5 {[%clk
0:02:54.8]} 18. Rd1 {[%clk 0:02:43.7]} 18... Nc4 {[%clk 0:02:52]} 19. Bc1 {[%clk
0:02:43.4]} 19... Rad8 {[%clk 0:02:50.6]} 20. Kf2 {[%clk 0:02:42.8]} 20... b5
{[%clk 0:02:46.2]} 21. Rxd8 {[%clk 0:02:40.1]} 21... Rxd8 {[%clk 0:02:45.1]} 22.
Rd1 {[%clk 0:02:40.8]} 22... Rxd1 {[%clk 0:02:42.4]} 23. Bxd1 {[%clk 0:02:40.7]}
23... a5 {[%clk 0:02:41.6]} 24. a4 {[%clk 0:02:39.6]} 24... bxa4 {[%clk
0:02:33.3]} 25. Bxa4 {[%clk 0:02:38.6]} 25... Nb6 {[%clk 0:02:33.7]} 26. Bc2
{[%clk 0:02:34.9]} 26... a4 {[%clk 0:02:32.8]} 27. Be3 {[%clk 0:02:31]} 27...
Nc4 {[%clk 0:02:31.8]} 28. Bxa4 {[%clk 0:02:31.1]} 28... Nxb2 {[%clk 0:02:30.1]}
29. Bb5 {[%clk 0:02:24.1]} 29... Bc4 {[%clk 0:02:25.1]} 30. Bd7 {[%clk
0:02:19.9]} 30... f4 {[%clk 0:02:05.6]} 31. Bb6 {[%clk 0:02:15.4]} 31... Nd3+
{[%clk 0:01:58.5]} 32. Kg1 {[%clk 0:02:15.2]} 32... Nc1 {[%clk 0:01:47]} 33. Ba5
{[%clk 0:02:07.3]} 33... Nd3 {[%clk 0:01:43.7]} 34. g3 {[%clk 0:01:59]} 34... g5
{[%clk 0:01:43.1]} 35. h4 {[%clk 0:01:53.3]} 35... h6 {[%clk 0:01:43.6]} 36.
gxf4 {[%clk 0:01:51.1]} 36... Nxf4 {[%clk 0:01:29.4]} 37. hxg5 {[%clk
0:01:48.9]} 37... hxg5 {[%clk 0:01:30.3]} 38. Kf2 {[%clk 0:01:48.8]} 38... Nd5
{[%clk 0:01:21.6]} 39. Kg3 {[%clk 0:01:44.5]} 39... Nf6 {[%clk 0:01:16.5]} 40.
Bf5 {[%clk 0:01:41.5]} 40... Be6 {[%clk 0:01:14]} 41. Bd3 {[%clk 0:01:35.4]}
41... g4 {[%clk 0:01:11.9]} 42. fxg4 {[%clk 0:01:31.6]} 42... Nxg4 {[%clk
0:01:11.8]} 43. c4 {[%clk 0:01:26.8]} 43... Nf6 {[%clk 0:01:08.2]} 44. c5 {[%clk
0:01:24.3]} 44... Bd5 {[%clk 0:01:06.1]} 45. Bb4 {[%clk 0:01:14]} 45... Nd7
{[%clk 0:01:04.8]} 46. Bb5 {[%clk 0:01:09.8]} 46... Nxc5 {[%clk 0:01:01.1]} 47.
Bxc5 {[%clk 0:01:09.7]} 47... e4 {[%clk 0:01:01.3]} 48. Kf4 {[%clk 0:01:09.6]}
48... e3 {[%clk 0:01:01.5]} 49. Kxe3 {[%clk 0:01:09.5]} 49... Ke6 {[%clk
0:01:01.9]} 50. Kd4 {[%clk 0:01:09.4]} 50... Ba2 {[%clk 0:01:01.8]} 51. Bc6
{[%clk 0:01:08.9]} 51... Bb3 {[%clk 0:01:00.9]} 52. Bf3 {[%clk 0:01:08.5]} 52...
Ba2 {[%clk 0:01:00.6]} 53. Bg4+ {[%clk 0:01:08.6]} 53... Kf6 {[%clk 0:01:00]}
54. Ke4 {[%clk 0:01:08.2]} 54... Be6 {[%clk 0:00:56.4]} 55. Be2 {[%clk
0:01:07.4]} 55... Bf5+ {[%clk 0:00:55.8]} 56. Kf4 {[%clk 0:01:07.7]} 56... Bc2
{[%clk 0:00:54.3]} 57. Bc4 {[%clk 0:01:06.3]} 57... Kg6 {[%clk 0:00:52.4]} 58.
Bd4 {[%clk 0:01:05.9]} 58... Kh7 {[%clk 0:00:49.5]} 59. Kg5 {[%clk 0:01:05.7]}
59... Bb1 {[%clk 0:00:49.6]} 60. Be3 {[%clk 0:00:59.1]} 60... Bc2 {[%clk
0:00:49.6]} 61. Kf6 {[%clk 0:00:58.8]} 61... Bb1 {[%clk 0:00:50]} 62. Kf7 {[%clk
0:00:54.8]} 62... Bc2 {[%clk 0:00:48.8]} 63. Kf6 {[%clk 0:00:47.3]} 63... Bb1
{[%clk 0:00:48.8]} 64. Bf7 {[%clk 0:00:36.1]} 64... Bc2 {[%clk 0:00:48.9]} 65.
Ke7 {[%clk 0:00:32.5]} 65... Bb1 {[%clk 0:00:48.7]} 66. Kf8 {[%clk 0:00:32.8]}
66... Bc2 {[%clk 0:00:49.2]} 67. Bg8+ {[%clk 0:00:31.4]} 67... Kg6 {[%clk
0:00:48.7]} 68. Bd2 {[%clk 0:00:26.6]} 68... Bb1 {[%clk 0:00:48.7]} 69. Bf7+
{[%clk 0:00:26.4]} 69... Kh7 {[%clk 0:00:48]} 70. Bg8+ {[%clk 0:00:26.5]} 70...
Kg6 {[%clk 0:00:47.5]} 71. Ke7 {[%clk 0:00:25.7]} 71... Bc2 {[%clk 0:00:45.7]}
72. Kd6 {[%clk 0:00:25.5]} 72... Bb1 {[%clk 0:00:45.8]} 73. Ke5 {[%clk
0:00:25.8]} 73... Bc2 {[%clk 0:00:45.8]} 74. Kd4 {[%clk 0:00:26.2]} 74... Bb1
{[%clk 0:00:45.9]} 75. Kc3 {[%clk 0:00:26.7]} 75... Bf5 {[%clk 0:00:45]} 76. Kd4
{[%clk 0:00:26.4]} 76... Bb1 {[%clk 0:00:44.9]} 77. Bd5 {[%clk 0:00:26]} 77...
Bc2 {[%clk 0:00:44.2]} 78. Ke3 {[%clk 0:00:25.9]} 78... Bb1 {[%clk 0:00:44.2]}
79. Kf4 {[%clk 0:00:26.2]} 79... Kh7 {[%clk 0:00:44.3]} 80. Kg5 {[%clk
0:00:26.3]} 80... Bc2 {[%clk 0:00:44.4]} 81. Kf6 {[%clk 0:00:26.4]} 81... Bb1
{[%clk 0:00:44.6]} 82. Be6 {[%clk 0:00:26.9]} 82... Bc2 {[%clk 0:00:44.6]} 83.
Bf5+ {[%clk 0:00:27.4]} 83... Bxf5 {[%clk 0:00:44.3]} 1/2-1/2

[Event "Early-Titled-Tuesday-Blitz-April-23-2024"]
[Site "Chess.com"]
[Date "2024.04.23"]
[Round "6"]
[White "DominguezOnYoutube"]
[Black "jumpingknight20"]
[Result "1-0"]
[WhiteElo "2947"]
[BlackElo "2746"]
[TimeControl "180+1"]
[EndTime "9:09:21 PDT"]
[Termination "DominguezOnYoutube won by resignation"]

1. e4 {[%clk 0:03:00.9]} 1... c5 {[%clk 0:02:59.6]} 2. Nf3 {[%clk 0:03:01]} 2...
d6 {[%clk 0:03:00.1]} 3. d4 {[%clk 0:03:01.4]} 3... cxd4 {[%clk 0:03:01]} 4.
Nxd4 {[%clk 0:03:01.9]} 4... Nf6 {[%clk 0:03:01.5]} 5. Nc3 {[%clk 0:03:02.2]}
5... a6 {[%clk 0:03:01.9]} 6. Be3 {[%clk 0:03:02.2]} 6... e5 {[%clk 0:03:02.2]}
7. Nb3 {[%clk 0:03:02.1]} 7... Be7 {[%clk 0:03:02.8]} 8. f3 {[%clk 0:03:02.1]}
8... Be6 {[%clk 0:03:02.9]} 9. Qd2 {[%clk 0:03:02.5]} 9... h5 {[%clk 0:03:03.3]}
10. Nd5 {[%clk 0:02:59.1]} 10... Nxd5 {[%clk 0:03:00.8]} 11. exd5 {[%clk
0:02:59.3]} 11... Bf5 {[%clk 0:03:01.2]} 12. Be2 {[%clk 0:02:59.2]} 12... Bh4+
{[%clk 0:02:49.7]} 13. g3 {[%clk 0:02:58.9]} 13... Be7 {[%clk 0:02:50.4]} 14.
O-O-O {[%clk 0:02:54.8]} 14... Nd7 {[%clk 0:02:47.9]} 15. Kb1 {[%clk 0:02:52.9]}
15... Rc8 {[%clk 0:02:40.1]} 16. Rc1 {[%clk 0:02:52.3]} 16... Nb6 {[%clk
0:02:23.6]} 17. Na5 {[%clk 0:02:40.8]} 17... Qc7 {[%clk 0:02:21.8]} 18. Ka1
{[%clk 0:02:37]} 18... Bd8 {[%clk 0:02:00]} 19. c4 {[%clk 0:02:36.3]} 19... Na4
{[%clk 0:01:44]} 20. Nb3 {[%clk 0:02:29.4]} 20... Be7 {[%clk 0:01:40.5]} 21. h3
{[%clk 0:02:20.9]} 21... Bg6 {[%clk 0:01:37.4]} 22. Bd3 {[%clk 0:01:42.2]} 22...
e4 {[%clk 0:01:29.4]} 23. Bxe4 {[%clk 0:01:37.2]} 23... Bxe4 {[%clk 0:01:21.4]}
24. fxe4 {[%clk 0:01:37]} 24... O-O {[%clk 0:01:22.1]} 25. Bd4 {[%clk
0:01:32.7]} 25... f5 {[%clk 0:01:14.2]} 26. exf5 {[%clk 0:01:25.5]} 26... Rxf5
{[%clk 0:01:15.1]} 27. Qe2 {[%clk 0:01:24]} 27... Rcf8 {[%clk 0:01:09.1]} 28. g4
{[%clk 0:01:17.6]} 28... Rf3 {[%clk 0:00:55.6]} 29. gxh5 {[%clk 0:01:12.5]}
29... Bg5 {[%clk 0:00:54.6]} 30. Rcg1 {[%clk 0:01:06.6]} 30... Bh6 {[%clk
0:00:54.7]} 31. Qe6+ {[%clk 0:01:00.6]} 31... R8f7 {[%clk 0:00:49.9]} 32. Qe2
{[%clk 0:00:40]} 32... Qd7 {[%clk 0:00:37.2]} 33. h4 {[%clk 0:00:32.4]} 33... b6
{[%clk 0:00:27.9]} 34. Qe6 {[%clk 0:00:28.1]} 34... Qxe6 {[%clk 0:00:19.4]} 35.
dxe6 {[%clk 0:00:28.4]} 35... Re7 {[%clk 0:00:20.1]} 36. Rg6 {[%clk 0:00:28.2]}
36... Nc5 {[%clk 0:00:19.4]} 37. Nxc5 {[%clk 0:00:26.2]} 37... bxc5 {[%clk
0:00:18.5]} 38. Bc3 {[%clk 0:00:26]} 38... Re3 {[%clk 0:00:17.1]} 39. Rd1 {[%clk
0:00:22.5]} 39... R3xe6 {[%clk 0:00:15.4]} 40. Rxe6 {[%clk 0:00:20.9]} 40...
Rxe6 {[%clk 0:00:16.3]} 41. a3 {[%clk 0:00:21.2]} 41... Kf7 {[%clk 0:00:15.6]}
42. Ka2 {[%clk 0:00:21.6]} 42... Ke7 {[%clk 0:00:15.9]} 43. Rg1 {[%clk
0:00:20.6]} 43... Kf7 {[%clk 0:00:15.7]} 44. Rg4 {[%clk 0:00:20.4]} 44... Re2
{[%clk 0:00:14.2]} 45. Kb3 {[%clk 0:00:20.3]} 45... Rf2 {[%clk 0:00:13.5]} 46.
Ka4 {[%clk 0:00:19.4]} 46... Rf5 {[%clk 0:00:10.3]} 47. Ka5 {[%clk 0:00:19.5]}
47... Rxh5 {[%clk 0:00:10.3]} 48. Kxa6 {[%clk 0:00:20]} 48... Ke6 {[%clk
0:00:10.5]} 49. a4 {[%clk 0:00:20.2]} 49... Kd7 {[%clk 0:00:10.2]} 50. Kb7
{[%clk 0:00:20.5]} 50... Rf5 {[%clk 0:00:09.3]} 51. a5 {[%clk 0:00:20.6]} 51...
Rf7 {[%clk 0:00:09.3]} 52. a6 {[%clk 0:00:20.5]} 52... Ke6+ {[%clk 0:00:09.9]}
53. Kb6 {[%clk 0:00:20.6]} 53... Kf5 {[%clk 0:00:10.2]} 54. Rg1 {[%clk
0:00:20.6]} 54... Bf4 {[%clk 0:00:09.2]} 55. a7 {[%clk 0:00:20.3]} 55... Rf8
{[%clk 0:00:09.4]} 56. Rxg7 {[%clk 0:00:19.9]} 56... d5 {[%clk 0:00:08.5]} 57.
cxd5 {[%clk 0:00:19.4]} 57... c4 {[%clk 0:00:09.1]} 58. Kb7 {[%clk 0:00:14.7]}
58... Bh6 {[%clk 0:00:07.9]} 59. Rd7 {[%clk 0:00:12.5]} 59... Ke4 {[%clk
0:00:08.1]} 60. a8=Q {[%clk 0:00:12.4]} 1-0